bitfinex-derivatives/quotes_ETHF0:USTF0_20220106
["timestamp","ask_amount","ask_price","bid_price","bid_amount"]
[1641438624863,2.00479,3494.8,3494.7,0.754]
[1641438625065,4.0,3497.1,3494.7,0.983991]
[1641438625362,1.43030414,3495.9,3494.7,0.928691]
[1641438625563,0.746,3496.9,3495.5,0.754]
[1641438625763,0.746,3497.9,3495.5,1.5323]
[1641438626064,6.175,3498.2,3495.5,2.2783]
[1641438626365,5.429,3498.2,3495.7,1.5]
[1641438626564,12.24,3498.1,3497.0,0.754]
[1641438626764,2.00479,3497.8,3497.0,2.71239]
[1641438627366,2.00479,3497.8,3489.3,0.39]
[1641438627367,0.746,3497.1,3495.6,0.754]
[1641438627565,0.746,3496.8,3495.6,0.754]
[1641438627765,16.8162,3497.0,3495.6,0.754]
[1641438627964,16.8162,3497.0,3496.6,0.754]
[1641438627965,4.5762,3497.0,3496.6,0.754]
[1641438628164,2.00479,3497.8,3496.9,0.754]
[1641438628364,1.42972951,3497.3,3496.6,0.6066]
[1641438628563,2.00479,3497.8,3496.7,0.8058721]
[1641438628765,0.746,3499.2,3497.1,2.00479]
[1641438628968,0.746,3498.3,3497.1,2.00479]
[1641438629266,0.4372,3500.3,3497.7,0.754]
[1641438629267,4.5745,3498.1,3497.7,0.754]
[1641438629466,3.23735394,3498.0,3497.9,0.754]
[1641438629665,3.23735394,3498.0,3497.9,0.229991]
[1641438629867,3.23735394,3498.0,3497.6,0.7895]
[1641438629868,3.23735394,3498.0,3497.6,0.344491]
[1641438630467,3.23735394,3498.0,3497.3,1.5]
[1641438630668,3.23735394,3498.0,3497.4,1.632394]
[1641438630969,3.23735394,3498.0,3497.9,2.00479]
[1641438631167,3.46734494,3498.0,3496.4,1.5]
[1641438631569,3.46734494,3498.0,3496.5,1.29028519]
[1641438631767,3.46734494,3498.0,3496.6,1.5]
[1641438631967,3.00082593,3498.1,3497.2,1.5]
[1641438632170,3.00082593,3498.1,3497.9,1.5]
[1641438632369,3.00082593,3498.1,3498.0,0.076609]
[1641438632769,3.75103242,3498.3,3498.0,0.076609]
[1641438632770,2.60703242,3498.3,3498.0,4.086189]
[1641438633469,4.12613566,3498.6,3498.1,1.28634421]
[1641438634071,4.12613566,3498.6,3498.3,1.5]
[1641438634270,4.12613566,3498.6,3498.5,1.5]
[1641438634469,4.12613566,3498.6,3498.5,2.2006]
[1641438634672,4.5012389,3499.1,3498.5,2.2006]
[1641438634869,4.5012389,3499.1,3498.5,4.20539]
[1641438635071,4.5012389,3499.1,3498.5,4.337784]
[1641438635671,4.5012389,3499.1,3498.5,4.20539]
[1641438635871,4.5012389,3499.1,3498.5,2.70539]
[1641438636075,1.5,3500.4,3498.1,0.70319355]
[1641438636271,2.00479,3500.6,3498.1,0.70319355]
[1641438636674,1.5,3500.3,3498.1,0.70319355]
[1641438636872,1.5,3500.3,3496.6,1.5]
[1641438636873,1.4294393,3498.2,3496.6,1.5]
[1641438637073,0.30547221,3495.8,3492.4,0.39]
[1641438637272,0.0698,3495.8,3492.4,0.39]
[1641438637471,0.7012,3495.8,3492.4,0.39]
[1641438637672,0.7012,3495.8,3493.2,0.97085453]
[1641438638074,0.7012,3495.8,3491.9,4.0]
[1641438638672,0.7012,3495.8,3490.6,31.4178]
[1641438638873,2.00479,3496.5,3495.5,2.00479]
[1641438639275,3.76709297,3495.6,3495.5,2.00479]
[1641438639474,3.76709297,3495.6,3495.5,2.213793]
[1641438639677,4.5012389,3496.4,3495.5,2.213793]
[1641438640474,4.5012389,3496.4,3495.6,1.36035957]
[1641438640676,4.5012389,3496.4,3495.7,0.132394]
[1641438640875,2.00479,3496.9,3496.3,2.00479]
[1641438641077,4.33323838,3496.6,3496.3,2.00479]
[1641438641278,0.229991,3496.5,3496.3,2.00479]
[1641438642076,0.924791,3496.5,3496.3,2.00479]
[1641438642277,0.6948,3496.5,3496.4,0.076609]
[1641438642578,8.18802263,3496.5,3496.3,2.00479]
[1641438642777,7.26281938,3496.5,3495.5,2.00479]
[1641438643380,2.929581,3496.5,3495.5,2.00479]
[1641438644483,2.69959,3496.5,3495.5,2.00479]
[1641438645281,4.32745838,3496.2,3495.5,2.00479]
[1641438645480,4.32745838,3496.2,3495.6,0.132394]
[1641438645681,4.32745838,3496.2,3495.6,0.790394]
[1641438646081,4.5012389,3496.8,3495.6,0.790394]
[1641438646780,4.5012389,3496.8,3496.7,4.00958]
[1641438646980,4.5012389,3496.8,3496.7,5.036183]
[1641438647183,4.5012389,3497.3,3496.7,17.276183]
[1641438647380,4.33020239,3496.8,3496.7,17.276183]
[1641438647581,2.39e-06,3496.8,3496.7,17.276183]
[1641438648080,2.39e-06,3496.8,3496.7,18.37978975]
[1641438648981,5.06389376,3497.8,3496.7,18.37978975]
[1641438649183,2.00479,3498.2,3496.7,18.37978975]
[1641438649583,1.5,3497.9,3496.7,6.13978975]
[1641438649785,2.3391,3497.9,3496.7,5.18979575]
[1641438650484,0.8391,3497.9,3496.7,5.18979575]
[1641438650884,2.00479,3498.2,3497.6,2.00479]
[1641438651084,2.00479,3498.2,3497.7,1.22065647]
[1641438651792,2.00479,3498.2,3497.7,1.35305047]
[1641438651993,2.00479,3498.2,3497.7,2.14015047]
[1641438652195,4.72733265,3498.1,3497.7,2.14015047]
[1641438652995,4.72733265,3498.1,3497.7,1.35305047]
[1641438653195,4.72733265,3498.1,3497.7,1.22065647]
[1641438653596,2.00479,3498.2,3497.7,1.22065647]
[1641438653797,4.32941628,3498.0,3497.6,0.63742568]
[1641438654999,6.33420628,3498.2,3497.6,0.63742568]
[1641438655397,6.33420628,3498.2,3497.7,1.03091419]
[1641438655597,6.33420628,3498.2,3497.7,1.16330819]
[1641438656000,4.32941628,3498.1,3497.7,1.03091419]
[1641438656197,4.88791628,3498.1,3497.7,1.03091419]
[1641438657400,4.32941628,3497.8,3497.7,1.03091419]
[1641438657602,4.32941628,3497.8,3496.7,2.00479]
[1641438657603,4.55940728,3497.8,3496.7,2.00479]
[1641438657800,4.55940728,3497.8,3496.7,3.17447691]
[1641438658000,4.55940728,3497.8,3496.7,15.41447691]
[1641438658001,0.229991,3497.8,3496.7,15.41447691]
[1641438658201,6.73212265,3498.2,3496.7,13.47325146]
[1641438658901,10.16618851,3498.2,3497.1,14.24479]
[1641438659101,3.14704639,3497.3,3497.1,2.00479]
[1641438659301,1.729991,3497.2,3496.7,1.23325146]
[1641438659501,1.5,3496.9,3496.7,1.23325146]
[1641438659903,3.91884639,3497.3,3496.7,1.23325146]
[1641438660502,0.60665165,3497.1,3496.7,1.23325146]
[1641438660705,3.75369804,3497.1,3496.7,1.23325146]
[1641438660903,5.75848804,3497.1,3496.7,1.16968691]
[1641438661703,1.5,3496.8,3496.7,1.16968691]
[1641438661907,1.729991,3496.8,3486.1,0.80234632]
[1641438662109,1.5,3496.5,3494.1,25.06125974]
[1641438662309,2.2002,3496.5,3494.7,12.24]
[1641438662709,1.4300771,3496.2,3494.7,12.24]
[1641438662909,3.4348671,3496.2,3495.4,2.00479]
[1641438663107,1.5,3495.7,3495.4,2.00479]
[1641438663309,1.5,3495.5,3493.4,12.24]
[1641438663508,2.2839,3495.7,3490.6,0.39]
[1641438663509,1.5,3494.7,3490.6,0.39]
[1641438663709,1.5,3494.7,3490.7,31.0855]
[1641438663710,0.7442,3494.7,3490.7,31.0855]
[1641438663911,0.7442,3494.7,3492.2,1.02490175]
[1641438664209,0.7442,3494.7,3493.0,1.43057628]
[1641438664409,1.5,3493.4,3492.2,1.02490175]
[1641438664611,2.0364,3493.4,3490.8,5.467]
[1641438664808,0.5364,3493.4,3493.1,2.00479]
[1641438665009,1.5,3493.2,3493.1,2.00479]
[1641438665211,1.5,3493.2,3489.3,4.0]
[1641438665408,1.5,3493.2,3491.6,12.24]
[1641438665608,1.5,3493.2,3491.5,1.43118641]
[1641438665609,1.5,3493.1,3491.5,1.43118641]
[1641438665809,0.5364,3493.4,3492.0,1.43100209]
[1641438666010,3.50479,3493.9,3492.0,1.43100209]
[1641438666311,3.50479,3493.9,3492.0,13.67100209]
[1641438666511,1.5,3493.8,3492.0,13.67100209]
[1641438666712,1.5,3493.8,3492.0,12.24]
[1641438666911,19.95530957,3509.8,3492.1,2.00479]
[1641438666912,2.00479,3492.9,3492.1,2.00479]
[1641438667212,2.00479,3492.9,3492.2,0.132394]
[1641438668012,2.00479,3492.9,3492.2,0.90111632]
[1641438668515,0.85714115,3500.1,3492.3,12.24]
[1641438668516,1.5,3495.3,3492.3,12.24]
[1641438668914,0.86079,3494.8,3494.0,2.00479]
[1641438669116,0.86079,3494.8,3494.1,0.132394]
[1641438669315,0.86079,3494.8,3494.1,12.372394]
[1641438669516,0.86079,3494.8,3494.0,2.57159]
[1641438669717,0.86079,3494.8,3494.0,2.00479]
[1641438670217,13.10079,3494.8,3494.0,2.00479]
[1641438670420,1.5,3494.1,3493.8,1.0]
[1641438670617,0.229991,3494.0,3493.8,1.0]
[1641438670817,5.00479,3493.9,3493.8,0.0001]
[1641438671018,5.00479,3493.9,3491.2,12.24]
[1641438671019,3.50479,3493.9,3491.2,12.24]
[1641438671218,1.5,3492.9,3491.3,1.43127654]
[1641438671421,1.5,3492.4,3489.3,4.0]
[1641438671619,0.7679,3492.9,3489.2,4.0]
[1641438671818,1.5,3492.3,3489.4,0.97158844]
[1641438672018,0.7679,3492.9,3489.7,12.24]
[1641438672218,1.5,3493.8,3491.2,4.0]
[1641438672418,31.5859,3494.7,3491.2,4.0]
[1641438672419,1.5,3493.9,3491.3,12.24]
[1641438672620,1.5,3493.9,3491.3,12.8382]
[1641438672821,1.5,3493.7,3493.5,2.00479]
[1641438673022,0.229991,3493.6,3493.5,2.00479]
[1641438673418,0.993391,3493.6,3490.9,12.24]
[1641438673620,1.5,3492.7,3490.9,12.24]
[1641438673819,0.6801,3492.8,3490.9,12.24]
[1641438674019,0.6801,3492.8,3491.7,1.43113316]
[1641438674219,1.5,3492.2,3489.2,4.0]
[1641438674421,1.5,3491.9,3489.3,12.24]
[1641438674619,2.0636,3491.9,3490.7,12.24]
[1641438674821,0.5636,3491.9,3491.7,2.00479]
[1641438675020,0.229991,3491.8,3491.7,2.00479]
[1641438675422,2.734781,3492.5,3491.7,2.00479]
[1641438676121,2.734781,3492.5,3491.7,3.27304224]
[1641438676821,1.5,3492.5,3492.1,2.00479]
[1641438677422,2.00479,3493.2,3492.1,0.06143093]
[1641438677821,2.00479,3493.2,3492.1,12.30143093]
[1641438678123,3.50479,3493.2,3492.1,0.06143093]
[1641438678921,2.00479,3493.2,3492.1,0.06143093]
[1641438679121,1.5,3492.5,3492.1,0.06143093]
[1641438679322,1.5,3492.5,3491.7,3.27304224]
[1641438679323,1.5,3492.4,3491.7,3.27304224]
[1641438679525,2.1905,3492.4,3491.7,3.27304224]
[1641438680523,1.1905,3492.4,3491.7,3.27304224]
[1641438680727,1.1905,3492.4,3491.8,0.132394]
[1641438680925,1.1905,3492.6,3492.1,2.00479]
[1641438681126,2.00479,3493.2,3492.1,2.00479]
[1641438681326,2.00479,3493.2,3492.1,2.861684]
[1641438681726,2.00479,3493.2,3492.2,12.24]
[1641438681926,1.21920293,3493.8,3492.2,9.95845425]
[1641438682125,1.21920293,3493.8,3492.5,9.95845425]
[1641438682325,1.21920293,3493.8,3492.5,0.3095]
[1641438682525,1.21920293,3493.8,3492.5,12.5495]
[1641438682926,1.21920293,3493.8,3493.5,2.00479]
[1641438683228,3.19529,3494.3,3493.6,1.33327154]
[1641438683427,1.1905,3494.0,3493.6,1.33327154]
[1641438683624,3.19529,3494.3,3493.6,1.33327154]
[1641438684726,1.1905,3493.7,3493.6,1.33327154]
[1641438684926,1.1905,3493.7,3492.8,2.00479]
[1641438684927,5.26979,3493.7,3492.8,2.00479]
[1641438685226,2.57929,3493.7,3493.2,1.18117685]
[1641438685426,1.1905,3493.6,3493.2,2.18117685]
[1641438685625,1.1905,3493.4,3493.2,2.18117685]
[1641438689027,2.00479,3493.3,3493.2,2.18117685]
[1641438689629,2.00479,3493.3,3490.8,0.5982]
[1641438689927,1.1905,3491.8,3490.8,12.24]
[1641438690128,0.6013,3491.8,3490.8,12.24]
[1641438690327,1.7918,3491.8,3490.8,12.24]
[1641438690628,2.93151421,3492.7,3490.8,12.24]
[1641438690829,1.43151421,3492.7,3490.8,12.24]
[1641438691031,0.7918,3492.0,3491.5,2.00479]
[1641438691230,4.2278604,3493.3,3491.7,12.24]
[1641438691431,2.79659,3493.3,3491.7,12.9714]
[1641438691630,0.7918,3493.1,3491.7,0.7314]
[1641438691830,0.7918,3493.1,3491.7,1.86463209]
[1641438692330,0.7918,3493.1,3491.7,3.29574886]
[1641438692629,0.7918,3492.5,3491.7,1.86463209]
[1641438692830,0.7918,3492.5,3491.8,0.132394]
[1641438693030,2.00479,3493.3,3492.2,2.00479]
[1641438693231,2.79659,3493.3,3492.2,2.00479]
[1641438693432,2.00479,3493.3,3492.2,2.00479]
[1641438693633,0.7918,3492.5,3492.2,2.00479]
[1641438693833,0.7918,3492.5,3492.3,0.362385]
[1641438694232,0.7918,3492.5,3492.4,1.40859277]
[1641438694733,1.021791,3492.5,3492.4,1.40859277]
[1641438694936,0.7918,3492.5,3492.4,1.40859277]
[1641438695537,1.021791,3492.5,3492.4,1.40859277]
[1641438695736,0.7918,3492.5,3492.4,0.79579704]
[1641438696337,0.7918,3492.5,3492.4,0.87240604]
[1641438696536,0.7918,3492.5,3492.4,1.00480004]
[1641438696737,1.021791,3492.5,3492.4,0.92819104]
[1641438696938,0.7918,3492.5,3492.4,0.92819104]
[1641438697340,0.7918,3492.5,3492.4,1.00480004]
[1641438697740,1.021791,3492.5,3492.4,0.79579704]
[1641438697941,0.7918,3492.5,3492.4,0.79579704]
[1641438698744,1.021791,3492.5,3492.4,0.79579704]
[1641438699540,0.7918,3492.5,3492.4,0.87240604]
[1641438699741,1.021791,3492.5,3492.4,0.79579704]
[1641438700549,0.7918,3492.5,3492.4,0.87240604]
[1641438701149,1.021791,3492.5,3492.4,0.79579704]
[1641438701354,1.154185,3492.5,3492.2,0.4239859]
[1641438701651,0.7918,3492.3,3492.2,0.4239859]
[1641438701851,0.924194,3492.3,3492.2,0.4239859]
[1641438702150,1.154185,3492.3,3492.2,0.4239859]
[1641438702552,0.7918,3492.3,3492.2,0.5005949]
[1641438703150,0.924194,3492.5,3492.2,0.5005949]
[1641438703351,0.7918,3492.3,3492.2,0.4239859]
[1641438703551,0.924194,3492.3,3492.2,0.4239859]
[1641438703753,0.7918,3492.5,3492.2,0.4239859]
[1641438703953,0.7918,3492.5,3492.2,1.1395859]
[1641438704152,0.132394,3492.4,3492.2,1.1395859]
[1641438704351,0.132394,3492.4,3492.2,0.7156]
[1641438704852,0.7918,3492.3,3491.8,1.32127984]
[1641438705052,2.00479,3491.9,3491.8,1.32127984]
[1641438705255,2.00479,3491.9,3491.8,1.39788884]
[1641438706456,2.234781,3491.9,3491.8,1.32127984]
[1641438706856,2.00479,3491.9,3491.8,1.39788884]
[1641438709657,3.158975,3491.9,3491.1,2.00479]
[1641438709858,0.7918,3491.8,3491.1,2.00479]
[1641438710058,2.00479,3491.9,3491.2,0.132394]
[1641438710257,2.00479,3491.9,3491.2,0.814194]
[1641438710459,2.00479,3491.9,3491.4,0.7082]
[1641438710659,2.00479,3492.7,3491.7,0.7082]
[1641438710858,0.7918,3492.5,3491.5,12.24]
[1641438711058,0.7918,3492.5,3491.7,2.00479]
[1641438711258,0.132394,3492.4,3491.7,2.00479]
[1641438713061,2.00479,3491.9,3491.2,1.4310131]
[1641438713259,2.00479,3491.9,3491.3,0.132394]
[1641438713460,0.132394,3491.8,3491.2,1.4310131]
[1641438713660,0.132394,3491.8,3491.2,1.5634071]
[1641438714460,0.674194,3491.8,3491.2,1.4310131]
[1641438714860,0.674194,3491.8,3491.2,1.5634071]
[1641438715259,0.5418,3491.8,3491.2,1.5634071]
[1641438715461,2.00479,3491.9,3491.2,13.8034071]
[1641438716964,2.00479,3491.9,3491.2,15.234741]
[1641438717163,2.00479,3491.9,3491.2,13.8034071]
[1641438717766,0.7918,3492.5,3491.4,12.24]
[1641438718167,2.00479,3492.7,3491.6,12.24]
[1641438718465,0.7918,3492.4,3491.6,14.21373725]
[1641438718666,0.7918,3492.4,3491.7,0.132394]
[1641438719165,0.7918,3492.4,3491.7,2.137184]
[1641438719368,0.7918,3492.1,3491.7,2.137184]
[1641438719566,0.924194,3492.3,3491.7,2.137184]
[1641438719768,0.5618,3492.1,3491.7,2.137184]
[1641438719969,1.21920293,3494.0,3492.0,0.7082]
[1641438720268,2.01100293,3494.0,3492.2,12.24]
[1641438720469,0.4293,3493.1,3492.2,12.24]
[1641438720668,0.7918,3493.2,3492.2,12.24]
[1641438721168,2.00479,3493.6,3492.7,2.00479]
[1641438721369,2.79659,3493.6,3492.7,2.00479]
[1641438721570,2.00479,3493.6,3492.7,2.00479]
[1641438721769,2.79659,3493.6,3492.7,2.00479]
[1641438721974,2.00479,3493.9,3492.7,2.71299]
[1641438722172,0.72450294,3494.3,3493.1,4.7082]
[1641438722372,1.51630294,3494.3,3493.2,12.24]
[1641438722573,1.51630294,3494.3,3493.1,4.0]
[1641438722574,0.7918,3493.9,3492.4,2.00479]
[1641438722872,0.7918,3493.2,3492.4,2.00479]
[1641438723074,2.00479,3493.0,3492.5,0.132394]
[1641438723575,2.00479,3493.4,3492.5,1.44326746]
[1641438723774,0.60718049,3493.5,3492.7,12.24]
[1641438723974,0.60718049,3493.5,3492.8,0.132394]
[1641438724577,0.73957449,3493.5,3493.2,1.0]
[1641438724777,0.229991,3493.4,3493.2,1.0]
[1641438725278,2.00479,3493.5,3493.3,0.076609]
[1641438725477,2.00479,3493.5,3493.2,1.0]
[1641438726178,2.00479,3493.5,3493.3,0.076609]
[1641438726378,2.00479,3493.5,3493.3,0.209003]
[1641438726577,0.229991,3493.4,3493.3,0.209003]
[1641438726780,0.60718049,3493.4,3493.3,0.132394]
[1641438726978,0.60718049,3493.4,3493.3,0.209003]
[1641438727979,0.60718049,3493.4,3493.3,0.132394]
[1641438728379,2.00479,3493.5,3493.4,0.39281951]
[1641438728779,3.026581,3493.5,3493.4,0.39281951]
[1641438728980,3.158975,3493.5,3493.4,0.39281951]
[1641438729581,3.158975,3493.5,3493.4,1.39281951]
[1641438730081,3.158975,3493.5,3493.4,1.951e-05]
[1641438730283,3.158975,3493.5,3492.8,2.00479]
[1641438730485,0.7918,3492.9,3492.8,2.00479]
[1641438730682,1.701891,3492.9,3492.8,2.00479]
[1641438731085,1.4719,3492.9,3492.8,2.00479]
[1641438731283,0.6801,3492.9,3492.8,3.30446682]
[1641438731484,0.910091,3492.9,3492.8,3.22785782]
[1641438731686,0.7918,3493.4,3492.8,3.22785782]
[1641438731885,2.00479,3493.5,3492.9,0.132394]
[1641438731886,3.83224947,3493.5,3492.9,0.132394]
[1641438733087,1.82745947,3493.4,3492.9,0.132394]
[1641438733689,1.82745947,3493.4,3492.9,0.840594]
[1641438733888,2.28432434,3493.7,3493.2,12.24]
[1641438734089,2.28432434,3493.7,3493.4,12.24]
[1641438734290,1.88585838,3493.6,3493.5,0.076609]
[1641438734490,1.88585838,3493.6,3493.3,12.24]
[1641438734691,1.88585838,3493.6,3493.4,0.132394]
[1641438735290,4.28911434,3493.9,3493.5,0.076609]
[1641438735491,2.00479,3493.9,3493.6,0.132394]
[1641438735992,2.00479,3493.9,3493.7,0.076609]
[1641438736190,2.00479,3493.9,3493.7,0.209003]
[1641438738592,2.00479,3493.9,3493.7,1.63931328]
[1641438739697,2.79659,3494.5,3493.7,1.63931328]
[1641438740099,2.00479,3494.5,3493.7,14.58751328]
[1641438740302,2.28432434,3495.4,3494.2,13.67009959]
[1641438740598,2.28432434,3495.4,3494.4,12.24]
[1641438740998,1.15932434,3495.4,3495.0,12.24]
[1641438741199,1.15932434,3495.4,3495.2,2.00479]
[1641438741400,1.15932434,3495.4,3495.3,0.076609]
[1641438741603,1.15932434,3495.5,3495.3,0.209003]
[1641438742204,1.15932434,3495.5,3495.4,1.24869401]
[1641438743204,3.14704639,3495.8,3495.4,1.24869401]
[1641438743404,3.14704639,3495.8,3495.5,0.132394]
[1641438743604,0.229991,3495.7,3495.6,0.076609]
[1641438743804,3.14704639,3495.8,3495.5,0.132394]
[1641438744005,1.87843361,3496.3,3495.5,12.372394]
[1641438744206,1.87843361,3496.3,3495.5,0.132394]
[1641438744705,1.87843361,3496.3,3495.7,1.42949652]
[1641438744904,1.87843361,3496.3,3495.7,2.23499652]
[1641438745107,1.87843361,3496.3,3495.8,0.132394]
[1641438745407,0.73443361,3496.3,3495.8,0.132394]
[1641438745606,0.73443361,3496.6,3495.8,0.132394]
[1641438745805,0.73443361,3496.6,3495.8,12.372394]
[1641438746606,0.132394,3496.5,3495.8,0.132394]
[1641438747006,0.924194,3496.5,3495.8,0.132394]
[1641438747208,2.928984,3496.5,3495.8,0.132394]
[1641438748208,2.00479,3496.5,3495.8,0.132394]
[1641438749009,0.60674554,3496.4,3495.8,0.132394]
[1641438749209,1.2500629,3496.3,3495.8,0.132394]
[1641438749808,0.7918,3496.0,3495.8,0.132394]
[1641438750009,1.2500629,3496.3,3495.9,0.076609]
[1641438750208,1.2500629,3496.3,3496.0,1.17881115]
[1641438750408,1.2500629,3496.3,3496.1,0.132394]
[1641438751108,0.60674554,3496.4,3496.2,0.076609]
[1641438751308,0.60674554,3496.4,3496.3,0.132394]
[1641438751511,0.60674554,3496.4,3496.3,14.50982083]
[1641438751909,1.85680844,3496.5,3496.3,13.080594]
[1641438752108,1.85680844,3496.5,3496.4,0.784809]
[1641438752308,1.85680844,3496.5,3496.4,12.64490011]
[1641438752709,1.85680844,3496.5,3496.4,11.93670011]
[1641438752908,1.85680844,3496.5,3496.4,1.5057623]
[1641438753110,2.08679944,3496.5,3496.2,3.43407607]
[1641438753310,1.2500629,3496.5,3496.2,2.00479]
[1641438753509,1.2500629,3496.5,3496.2,14.24479]
[1641438753709,0.7918,3496.9,3496.2,2.00479]
[1641438753910,0.7918,3496.9,3496.3,12.24]
[1641438754111,1.2500629,3497.0,3496.4,1.42919006]
[1641438754310,2.0418629,3497.0,3496.4,1.42919006]
[1641438754510,2.0418629,3497.0,3496.5,12.24]
[1641438754711,1.2500629,3497.0,3496.5,12.24]
[1641438754911,1.2500629,3497.0,3496.5,12.7905]
[1641438755111,1.2500629,3497.0,3496.6,2.00479]
[1641438755311,0.7918,3496.7,3496.6,2.00479]
[1641438755511,1.756391,3496.7,3494.2,0.4229]
[1641438755712,0.7918,3495.8,3494.2,0.4229]
[1641438755913,0.7918,3495.6,3494.3,0.5982]
[1641438756112,0.7918,3495.6,3494.9,12.24]
[1641438756312,1.021791,3495.6,3494.9,12.24]
[1641438756513,1.021791,3495.6,3495.5,2.42201683]
[1641438756712,0.132394,3495.7,3495.5,2.49862583]
[1641438757213,1.021791,3495.6,3495.5,2.42201683]
[1641438757411,0.132394,3495.7,3495.5,2.42201683]
[1641438757814,0.132394,3495.7,3495.5,2.49862583]
[1641438758013,0.132394,3495.7,3495.5,1.42201683]
[1641438758213,0.229991,3495.6,3495.5,1.42201683]
[1641438758416,0.132394,3495.7,3495.6,2.0]
[1641438759015,0.132394,3495.7,3495.6,2.076609]
[1641438759215,0.132394,3495.7,3495.6,2.0]
[1641438759515,0.924194,3495.7,3493.1,3.66823509]
[1641438759714,0.7918,3494.8,3493.8,0.7082]
[1641438759915,0.7918,3495.0,3493.9,0.7082]
[1641438760114,0.7918,3495.2,3494.3,0.7082]
[1641438760315,0.7918,3495.2,3493.9,4.7082]
[1641438760515,0.7918,3495.2,3493.1,3.66823509]
[1641438760516,0.7918,3495.2,3494.3,12.24]
[1641438760715,0.132394,3495.7,3494.7,12.24]
[1641438761018,0.924194,3495.7,3494.9,1.42978879]
[1641438761215,2.00479,3495.1,3494.9,1.42978879]
[1641438761415,2.234781,3495.1,3495.0,1.36172573]
[1641438761916,0.132394,3495.7,3495.0,1.36172573]
[1641438761917,0.132394,3495.7,3495.0,13.67833473]
[1641438762117,0.132394,3495.7,3495.0,1.43833473]
[1641438762317,0.132394,3495.6,3495.0,1.43833473]
[1641438762717,1.2500629,3495.1,3495.0,1.43833473]
[1641438762918,1.87393616,3495.7,3495.0,1.43833473]
[1641438762919,1.87393616,3495.7,3495.1,12.24]
[1641438763119,1.87393616,3495.7,3495.4,12.24]
[1641438763320,1.87393616,3495.7,3495.5,12.469991]
[1641438763521,1.87393616,3495.7,3495.5,0.229991]
[1641438763720,0.7918,3495.6,3495.5,0.229991]
[1641438763920,0.7918,3495.6,3495.4,2.00479]
[1641438764321,0.7918,3495.6,3495.5,0.229991]
[1641438764521,0.7918,3495.6,3495.5,0.97999134]
[1641438764722,0.132394,3495.8,3495.5,0.97999134]
[1641438765121,0.7918,3495.9,3495.5,0.97999134]
[1641438765524,1.87393616,3496.2,3495.5,0.97999134]
[1641438765722,0.7918,3495.6,3495.5,0.75000034]
[1641438766126,0.924194,3495.6,3495.5,0.75000034]
[1641438767424,1.650194,3495.6,3495.0,2.00479]
[1641438767625,0.7918,3495.1,3495.0,2.00479]
[1641438768024,2.424194,3495.1,3495.0,2.00479]
[1641438768223,2.424194,3495.1,3494.2,0.5401]
[1641438768425,0.7918,3494.3,3494.2,0.5401]
[1641438768626,0.924194,3494.3,3494.2,0.5401]
[1641438769023,0.924194,3494.3,3494.2,1.72186963]
[1641438769224,2.928984,3494.3,3494.2,1.72186963]
[1641438769524,2.79659,3494.3,3494.2,1.72186963]
[1641438770926,2.928984,3494.3,3494.2,1.72186963]
[1641438774429,2.79659,3494.3,3494.2,1.72186963]
[1641438774831,2.00479,3494.3,3494.2,1.72186963]
[1641438775030,2.79659,3494.3,3494.2,1.72186963]
[1641438775430,0.7918,3494.3,3494.2,1.72186963]
[1641438775631,0.7918,3494.3,3494.2,1.95186063]
[1641438775831,0.7918,3494.3,3494.2,1.72186963]
[1641438776230,0.924194,3494.3,3494.2,1.72186963]
[1641438777832,0.132394,3494.3,3494.2,1.72186963]
[1641438779237,1.24711482,3494.6,3494.2,1.72186963]
[1641438779434,1.24711482,3494.6,3494.2,1.18176963]
[1641438779635,1.24711482,3494.6,3494.2,1.90646963]
[1641438780037,2.00479,3494.7,3494.2,1.90646963]
[1641438780737,1.24711482,3494.9,3494.3,1.632394]
[1641438781040,1.24711482,3495.0,3494.6,12.24]
[1641438781238,1.24711482,3495.0,3494.7,0.132394]
[1641438781437,1.24711482,3495.0,3494.9,12.24]
[1641438781637,1.24711482,3495.0,3494.9,0.6107]
[1641438781839,1.24711482,3495.0,3494.9,1.82795619]
[1641438782537,0.132394,3495.1,3494.9,1.82795619]
[1641438782938,0.132394,3495.1,3495.0,0.229991]
[1641438783139,0.132394,3495.1,3494.9,1.82795619]
[1641438783140,0.132394,3495.1,3494.9,1.21725619]
[1641438783941,1.632394,3495.1,3493.9,2.00479]
[1641438784140,0.132394,3495.1,3493.9,2.00479]
[1641438784540,1.5,3495.0,3493.9,2.00479]
[1641438784941,2.0982,3495.2,3493.9,2.00479]
[1641438785140,1.5,3495.0,3494.0,1.03008185]
[1641438785541,2.00479,3494.5,3494.0,1.03008185]
[1641438785740,0.132394,3494.4,3494.0,1.03008185]
[1641438785941,1.632394,3494.4,3494.0,1.03008185]
[1641438786340,0.132394,3494.4,3494.0,1.03008185]
[1641438787441,2.00479,3494.1,3494.0,1.03008185]
[1641438789545,2.00479,3494.1,3494.0,1.39246685]
[1641438790144,1.24711482,3494.7,3494.0,13.63246685]
[1641438790445,1.24711482,3494.7,3494.0,14.37686685]
[1641438790643,1.24711482,3494.7,3494.4,1.43001574]
[1641438790843,1.24711482,3494.7,3494.0,2.13686685]
[1641438790844,1.24711482,3494.7,3494.5,0.362385]
[1641438791144,1.24711482,3494.7,3494.1,1.5]
[1641438791344,1.24711482,3495.1,3494.3,1.43004846]
[1641438791544,3.25190482,3495.1,3494.4,0.132394]
[1641438791844,3.25190482,3495.1,3494.4,12.372394]
[1641438792445,3.25190482,3495.1,3494.4,0.132394]
[1641438792745,0.132394,3495.0,3494.4,0.132394]
[1641438793347,2.00479,3495.1,3494.4,0.132394]
[1641438793749,2.00479,3495.1,3494.7,13.24]
[1641438793951,2.00479,3495.1,3494.8,0.132394]
[1641438794149,3.25190482,3495.1,3494.9,0.229991]